bitfinex-derivatives/quotes_BNBF0:USTF0_20250329
["timestamp","ask_amount","ask_price","bid_price","bid_amount"]
[1743244783028,4.29563338,605.7,605.06,0.27036298]
[1743244783226,4.29563338,605.69,605.06,0.27036298]
[1743244783429,4.29563338,605.68,605.06,0.27036298]
[1743244783632,4.29563338,605.67,605.06,0.27036298]
[1743244783837,4.29563338,605.66,605.06,0.27036298]
[1743244784035,4.29563338,605.65,605.06,0.27036298]
[1743244784228,2.18665893,605.64,605.06,0.27036298]
[1743244784532,2.18665893,605.63,605.06,1.96836298]
[1743244784733,1.31810903,605.62,605.07,0.27036298]
[1743244784935,1.31810903,605.61,605.07,0.27036298]
[1743244785136,1.31810903,605.6,605.07,0.27036298]
[1743244785337,1.31810903,605.59,605.07,0.27036298]
[1743244785538,1.31810903,605.58,605.07,0.27036298]
[1743244785832,2.3389552,605.57,605.07,0.27036298]
[1743244786040,1.31810903,605.56,605.07,0.27036298]
[1743244786231,1.02084617,605.57,605.08,1.944]
[1743244786435,1.31697922,605.56,605.08,1.944]
[1743244786639,2.33782539,605.55,605.09,0.2705639]
[1743244786841,1.02084617,605.55,605.09,0.2705639]
[1743244787534,1.02084617,605.54,605.09,0.2705639]
[1743244787939,1.02084617,605.53,605.09,0.2705639]
[1743244788639,1.64750935,605.93,605.09,0.2705639]
[1743244788640,1.02084617,605.52,605.09,0.2705639]
[1743244789132,0.49531688,605.86,605.09,0.2705639]
[1743244789337,6.17340692,605.85,605.09,0.2705639]
[1743244789538,6.17340692,605.84,605.09,0.2705639]
[1743244789736,6.17340692,605.83,605.09,0.2705639]
[1743244789940,8.82375722,605.82,605.08,1.944]
[1743244790137,5.67809004,605.81,605.09,0.270691]
[1743244790342,5.67809004,605.8,605.09,0.270691]
[1743244790642,5.67809004,605.79,605.09,0.270691]
[1743244790837,5.67809004,605.78,605.09,0.270691]
[1743244791037,5.67809004,605.77,605.09,0.270691]
[1743244791237,5.67809004,605.76,605.09,0.270691]
[1743244791537,5.67809004,605.75,605.09,0.270691]
[1743244791736,5.67809004,605.74,605.1,0.27068615]
[1743244791941,5.67809004,605.73,605.09,0.27068615]
[1743244792244,4.29018252,605.72,605.1,0.27068615]
[1743244792443,4.29018252,605.71,605.09,0.27068615]
[1743244792638,4.29018252,605.7,605.09,0.27068615]
[1743244792836,4.29018252,605.69,605.09,0.27068615]
[1743244793042,4.29018252,605.68,605.09,0.27068615]
[1743244793238,4.29018252,605.67,605.09,0.27068615]
[1743244793440,3.42274032,605.66,605.09,0.27068615]
[1743244793639,2.18388078,605.65,605.09,0.27068615]
[1743244793841,2.18388078,605.64,605.09,0.27068615]
[1743244794042,2.18388078,605.63,605.09,0.27068615]
[1743244794242,1.31643858,605.62,605.09,0.27068615]
[1743244794440,1.31643858,605.61,605.09,0.27068615]
[1743244794645,1.31643858,605.6,605.09,0.27068615]
[1743244794846,1.31643858,605.59,605.09,0.27068615]
[1743244795041,1.31643858,605.58,605.09,0.27068615]
[1743244795243,1.31643858,605.57,605.09,0.27068615]
[1743244795440,1.31643858,605.56,605.09,0.27068615]
[1743244795639,1.0193655,605.56,605.09,0.27068615]
[1743244796247,1.0193655,605.55,605.09,0.27068615]
[1743244796950,1.0193655,605.54,605.09,0.27068615]
[1743244797548,1.31540264,605.53,605.09,0.27068615]
[1743244797748,1.31540264,605.52,605.09,0.27068615]
[1743244797949,1.31540264,605.51,605.09,0.27068615]
[1743244798148,1.0193655,605.53,605.09,0.27068615]
[1743244798351,1.31542688,605.52,605.09,0.27068615]
[1743244798549,1.0193655,605.5,605.09,1.50147419]
[1743244798950,1.0193655,605.5,605.1,0.27068615]
[1743244799150,1.0193655,605.49,605.1,0.27068615]
[1743244799549,1.0193655,605.48,605.1,0.27068615]
[1743244800252,0.49534864,605.77,605.1,0.27068615]
[1743244800451,5.67376961,605.76,605.1,0.27068615]
[1743244800644,5.67376961,605.75,605.11,0.27068675]
[1743244800845,0.981962,605.94,605.09,1.23078804]
[1743244800846,5.67351868,605.74,605.1,0.27068675]
[1743244801050,5.67351868,605.73,605.2,1.23078804]
[1743244801250,5.67351868,605.72,605.21,0.27068675]
[1743244801449,5.67351868,605.71,605.21,0.27068675]
[1743244801650,4.2866594,605.7,605.21,0.27068675]
[1743244801953,4.2866594,605.69,605.21,0.27068675]
[1743244802153,4.2866594,605.68,605.21,0.27068675]
[1743244802347,4.28665066,605.67,605.21,0.27068675]
[1743244802546,2.64854561,605.7,605.21,0.27068675]
[1743244802547,2.18211383,605.66,605.21,0.27068675]
[1743244802751,2.18211383,605.65,605.21,0.27068675]
[1743244802951,1.31533552,605.64,605.21,0.27068675]
[1743244803153,1.31533552,605.63,605.21,0.27068675]
[1743244803351,1.31533552,605.62,605.21,0.27068675]
[1743244803548,1.31533552,605.61,605.29,1.23078804]
[1743244803748,2.33400691,605.6,605.3,0.27070839]
[1743244803953,1.31533552,605.59,605.3,0.27070839]
[1743244804155,1.01867139,605.6,605.3,0.27070839]
[1743244804353,1.31546572,605.59,605.3,0.27070839]
[1743244804547,1.01867139,605.59,605.3,0.27070839]
[1743244805052,1.31554954,605.58,605.29,1.23078804]
[1743244805354,1.01867139,605.58,605.29,1.23078804]
[1743244806054,1.01867139,605.58,605.18,0.28738361]
[1743244806055,1.01867139,605.57,605.28,1.23078804]
[1743244806254,1.01867139,605.57,605.29,0.27075536]
[1743244807352,0.49528061,605.88,605.29,0.27075536]
[1743244807547,6.16904522,605.87,605.29,0.27075536]
[1743244807752,6.16904522,605.86,605.29,0.27075536]
[1743244807954,6.16904522,605.85,605.29,2.08775536]
[1743244808255,5.67376461,605.84,605.29,1.817]
[1743244808452,5.67376461,605.83,605.29,1.817]
[1743244808655,5.67376461,605.82,605.29,3.04778804]
[1743244808857,5.67376461,605.81,605.29,3.04778804]
[1743244809151,5.67376461,605.8,605.3,0.27072865]
[1743244809350,4.28691809,605.79,605.3,0.27072865]
[1743244809551,4.28691809,605.78,605.3,0.27072865]
[1743244809754,4.28691809,605.77,605.3,0.27072865]
[1743244810056,2.18221715,605.76,605.3,0.27072865]
[1743244810257,2.64867023,605.77,605.3,0.27072865]
[1743244810451,1.31603891,605.76,605.3,0.27072865]
[1743244810653,1.31603891,605.75,605.3,0.27072865]
[1743244810848,2.64867023,605.77,605.3,0.27072865]
[1743244811049,1.01871932,605.76,605.3,0.27072865]
[1743244811251,1.01871932,605.76,605.35,1.23078804]
[1743244811451,1.01871932,605.75,605.36,0.27072865]
[1743244811854,2.33461261,605.74,605.36,0.27072865]
[1743244812051,1.01871932,605.74,605.36,0.27072865]
[1743244812453,1.01871932,605.73,605.36,0.27072865]
[1743244813258,1.01871932,605.72,605.36,0.27072865]
[1743244814253,1.01871932,605.71,605.37,0.27067175]
[1743244814454,1.01871932,605.71,605.38,1.50145979]
[1743244814656,1.01871932,605.71,605.39,0.27067175]
[1743244815159,0.49516044,606.04,605.39,0.27067175]
[1743244815359,6.17309001,606.03,605.39,0.27067175]
[1743244815553,8.82424195,606.02,605.39,0.27067175]
[1743244815760,6.17309001,606.01,605.4,1.845]
[1743244816058,6.17309001,606.0,605.4,1.845]
[1743244816255,5.67792957,605.99,605.4,1.845]
[1743244816459,5.67792957,605.98,605.4,1.845]
[1743244816654,5.67792957,605.97,605.4,1.845]
[1743244816858,5.67792957,605.96,605.4,1.845]
[1743244817059,5.67792957,605.95,605.41,0.27066756]
[1743244817253,5.67792957,605.94,605.4,1.845]
[1743244817457,5.67792957,605.93,605.4,1.845]
[1743244817660,5.67792957,605.92,605.41,0.27065885]
[1743244817861,5.67792957,605.91,605.41,0.27065885]
[1743244818056,5.67792957,605.9,605.41,0.27065885]
[1743244818263,5.67880168,605.89,605.4,1.845]
[1743244818455,5.67880168,605.88,605.4,1.845]
[1743244818656,5.67880168,605.87,605.4,1.845]
[1743244818961,5.67880168,605.86,605.4,1.845]
[1743244819157,5.67880168,605.85,605.4,1.845]
[1743244819363,5.67880168,605.84,605.4,1.845]
[1743244819563,2.65115194,605.88,605.4,1.845]
[1743244819564,5.67880168,605.83,605.4,1.845]
[1743244819764,5.67880168,605.82,605.4,1.845]
[1743244819961,5.67880168,605.81,605.4,1.845]
[1743244820165,5.67880168,605.8,605.4,1.845]
[1743244820461,8.33141136,605.79,605.4,1.845]
[1743244820670,4.29008537,605.78,605.4,1.845]
[1743244820859,4.29008537,605.77,605.4,1.845]
[1743244821060,4.29008537,605.76,605.4,1.845]
[1743244821260,4.29008537,605.75,605.4,1.845]
[1743244821462,4.29008537,605.74,605.4,1.845]
[1743244821663,4.29008537,605.73,605.4,1.845]
[1743244821863,4.29008537,605.72,605.4,1.845]
[1743244822059,2.18381906,605.71,605.4,1.845]
[1743244822265,2.18381906,605.7,605.4,1.845]
[1743244822462,2.18381906,605.69,605.4,1.845]
[1743244822666,1.31641644,605.68,605.4,1.845]
[1743244822965,1.31641644,605.67,605.4,1.845]
[1743244823165,1.31641644,605.66,605.4,1.845]
[1743244823467,2.33609026,605.65,605.4,1.845]
[1743244823663,1.31641644,605.64,605.4,1.845]
[1743244823862,1.31641644,605.63,605.41,0.27070572]
[1743244824062,1.31641644,605.62,605.41,0.27070572]
[1743244824269,1.01967382,605.65,605.41,0.27070572]
[1743244824462,1.32079501,605.64,605.41,0.27070572]
[1743244824663,1.32079501,605.63,605.41,0.27070572]
[1743244824866,1.01967382,605.61,605.41,0.27070572]
[1743244825065,1.01967382,605.61,605.4,1.845]
[1743244825469,1.01967382,605.6,605.4,1.845]
[1743244825669,1.01967382,605.6,605.41,0.27061216]
[1743244826167,1.01967382,605.59,605.41,0.27061216]
[1743244826669,1.01967382,605.59,605.4,1.845]
[1743244826869,1.01967382,605.58,605.41,0.27060964]
[1743244827768,1.63770758,605.95,605.41,0.27060964]
[1743244828071,6.19300876,605.94,605.4,1.845]
[1743244828268,6.19300876,605.93,605.4,1.845]
[1743244828469,6.19300876,605.92,605.4,1.845]
[1743244828662,2.65988601,605.94,605.4,1.845]
[1743244828663,6.19300876,605.91,605.4,1.845]
[1743244828864,6.19300876,605.9,605.4,1.845]
[1743244829168,6.19292577,605.89,605.4,1.845]
[1743244829364,6.19292577,605.88,605.4,1.845]
[1743244829570,6.19292577,605.87,605.4,1.845]
[1743244829765,6.19292577,605.86,605.4,1.845]
[1743244829971,6.19292577,605.85,605.41,0.27065944]
[1743244830172,6.19292577,605.84,605.4,1.845]
[1743244830367,6.19292577,605.83,605.41,0.27067991]
[1743244830571,6.19292948,605.82,605.41,0.27067991]
[1743244830771,5.69772304,605.81,605.41,0.27067991]
[1743244830970,5.69772304,605.8,605.41,0.27067991]
[1743244831168,5.69772304,605.79,605.41,0.27067991]
[1743244831369,5.69772304,605.78,605.41,0.27067991]
[1743244831569,5.69772304,605.77,605.41,0.27067991]
[1743244831771,5.69772304,605.76,605.41,2.25967991]
[1743244831971,5.69772304,605.75,605.41,2.25967991]
[1743244832268,4.3050128,605.74,605.42,0.27067991]
[1743244832470,4.3050128,605.73,605.42,0.27067991]
[1743244832773,5.69744804,605.72,605.42,0.27067991]
[1743244832974,5.69742156,605.71,605.42,2.41467991]
[1743244833276,4.3050128,605.7,605.43,0.27067991]
[1743244833568,2.65988601,605.72,605.43,0.27067991]
[1743244833569,4.3050128,605.69,605.43,0.27067991]
[1743244833775,4.3050128,605.68,605.43,0.27067991]
[1743244833975,4.3050128,605.67,605.43,0.27067991]
[1743244834176,2.65988601,605.69,605.43,0.27067991]
[1743244834177,4.3050128,605.66,605.43,0.27067991]
[1743244834378,4.3050128,605.65,605.43,0.27067991]
[1743244834576,2.65988601,605.66,605.43,0.27067991]
[1743244834577,2.19143194,605.64,605.43,0.27067991]
[1743244834876,1.32098804,605.63,605.43,0.27067991]
[1743244835076,1.32098804,605.62,605.43,0.27067991]
[1743244835272,1.32098804,605.61,605.43,0.27067991]
[1743244835478,1.32098804,605.6,605.42,2.144]
[1743244835679,1.32098804,605.59,605.42,2.144]
[1743244835875,1.32098804,605.58,605.42,2.144]
[1743244836080,1.32098804,605.57,605.42,2.144]
[1743244836273,1.32098804,605.56,605.42,2.144]
[1743244836475,1.02303308,605.56,605.42,2.144]
[1743244837080,1.02303308,605.55,605.42,2.144]
[1743244837475,3.43542752,605.54,605.42,2.144]
[1743244837681,5.69893856,605.53,605.42,2.144]
[1743244837876,5.69893856,605.52,605.42,2.144]
[1743244838075,4.30600869,605.51,605.42,2.144]
[1743244838274,4.30600869,605.5,605.42,2.144]
[1743244838582,4.30600869,605.49,605.42,2.144]
[1743244838779,4.30560161,605.48,605.42,2.144]
[1743244838980,4.30560161,605.47,605.42,2.144]
[1743244839177,4.85194058,605.46,605.42,2.144]
[1743244839375,1.32116491,605.45,605.42,2.144]
[1743244839576,1.32116491,605.44,605.42,2.144]
[1743244839776,1.32116491,605.43,605.42,2.144]
[1743244839977,2.34419799,605.43,605.42,2.144]
[1743244841283,1.02303308,605.43,605.42,2.144]
[1743244841479,2.34423251,605.43,605.42,2.144]
[1743244844984,2.34423251,605.43,605.41,1.989]
[1743244845285,1.32119943,605.42,605.41,1.989]
[1743244845884,2.34423251,605.42,605.41,1.989]
[1743244849290,1.02303308,605.42,605.41,1.989]
[1743244850886,0.49532419,605.78,605.41,1.989]
[1743244851185,6.19300701,605.77,605.41,1.989]
[1743244851391,6.19300701,605.76,605.41,1.989]
[1743244851591,6.19300701,605.75,605.41,1.989]
[1743244851790,6.19300701,605.74,605.41,1.989]
[1743244851992,6.19300701,605.73,605.41,1.989]
[1743244852192,6.19300701,605.72,605.41,1.989]
[1743244852388,6.19300701,605.71,605.41,1.989]
[1743244852590,6.19300701,605.7,605.41,1.989]
[1743244852792,6.19300701,605.69,605.41,1.989]
[1743244852988,6.19300701,605.68,605.41,1.989]
[1743244853186,6.19300701,605.67,605.41,1.989]
[1743244853387,6.19256382,605.66,605.41,1.989]
[1743244853589,6.19256382,605.65,605.41,1.989]
[1743244853794,6.19256382,605.64,605.41,1.989]
[1743244853996,6.19256382,605.63,605.41,1.989]
[1743244854197,6.19256382,605.62,605.41,1.989]
[1743244854390,6.19256382,605.61,605.41,1.989]
[1743244854592,6.19256382,605.6,605.41,1.989]
[1743244854794,5.69720112,605.59,605.41,1.989]
[1743244854992,5.69720112,605.58,605.41,1.989]
[1743244855298,5.69720112,605.57,605.41,1.989]
[1743244855494,5.69720112,605.56,605.41,1.989]
[1743244855698,5.69720112,605.55,605.41,1.989]
[1743244855894,5.69720112,605.54,605.41,1.989]
[1743244856096,5.69720112,605.53,605.41,1.989]
[1743244856297,8.35716328,605.52,605.41,1.989]
[1743244856498,5.69720112,605.51,605.41,1.989]
[1743244856703,2.65996216,605.52,605.41,1.989]
[1743244856704,5.69720112,605.5,605.41,1.989]
[1743244857003,4.30450064,605.49,605.41,1.989]
[1743244857203,4.30450064,605.48,605.41,1.989]
[1743244857404,4.30450064,605.47,605.41,1.989]
[1743244857704,4.30450064,605.46,605.41,1.989]
[1743244857898,4.30450064,605.45,605.41,1.989]
[1743244858101,2.1912312,605.44,605.41,1.989]
[1743244858296,2.1912312,605.43,605.41,1.989]
[1743244858499,1.3207934,605.42,605.41,1.989]
[1743244859104,2.34385577,605.42,605.41,1.989]
[1743244859508,1.02306237,605.42,605.41,1.989]
[1743244859701,0.49535089,605.67,605.41,1.989]
[1743244859902,6.18508615,605.66,605.41,1.989]
[1743244860106,5.68973526,605.65,605.41,1.989]
[1743244860407,5.68973526,605.64,605.41,1.989]
[1743244860600,5.68973526,605.63,605.41,1.989]
[1743244860803,5.68973526,605.62,605.41,1.989]
[1743244861004,2.6562575,605.61,605.41,1.989]
[1743244861206,5.68855563,605.6,605.41,1.989]
[1743244861501,5.31971919,605.59,605.41,1.989]
[1743244861706,1.3188598,605.58,605.41,1.989]
[1743244861906,1.3188598,605.57,605.42,0.270754]
[1743244862108,1.3188598,605.56,605.42,0.270754]
[1743244862309,1.3188598,605.55,605.42,0.270754]
[1743244862510,1.0216375,605.56,605.42,0.270754]
[1743244863408,1.0216375,605.55,605.42,0.270754]
[1743244863908,1.0216375,605.54,605.42,0.270754]
[1743244864504,1.0216375,605.53,605.42,0.270754]
[1743244865011,1.0216375,605.53,605.41,1.989]
[1743244865310,0.49527581,605.78,605.41,1.989]
[1743244865510,5.69315492,605.77,605.41,1.989]
[1743244865703,5.69315492,605.76,605.41,1.989]
[1743244865903,5.69315492,605.75,605.41,1.989]
[1743244866103,5.69315492,605.74,605.41,1.989]
[1743244866309,5.69315492,605.73,605.41,1.989]
[1743244866609,5.69315492,605.72,605.41,1.989]
[1743244866910,5.69325107,605.71,605.41,1.989]
[1743244867102,4.30166638,605.7,605.41,1.989]
[1743244867307,4.30166638,605.69,605.41,1.989]
[1743244867508,4.30166638,605.68,605.41,1.989]
[1743244867711,4.30166638,605.67,605.41,3.923]
[1743244867911,4.30166638,605.66,605.41,3.923]
[1743244868105,4.30166638,605.65,605.41,3.923]
[1743244868305,4.30166638,605.64,605.41,3.923]
[1743244868508,4.30166638,605.63,605.41,3.923]
[1743244868707,2.18971195,605.62,605.41,3.923]
[1743244868909,1.31997152,605.61,605.41,3.923]
[1743244869105,1.31997152,605.6,605.41,3.923]
[1743244869409,1.31997152,605.59,605.41,3.923]
[1743244869609,1.31997152,605.58,605.41,3.923]
[1743244869805,1.31997152,605.57,605.41,3.923]
[1743244870008,1.31997152,605.56,605.41,3.923]
[1743244870212,1.31997152,605.55,605.41,3.923]
[1743244870411,1.31997152,605.54,605.41,3.923]
[1743244870611,1.02225859,605.57,605.41,3.923]
[1743244870811,1.32011127,605.56,605.41,3.923]
[1743244871012,1.32011127,605.55,605.41,3.923]
[1743244871209,1.02225859,605.56,605.41,3.923]
[1743244871407,2.34244897,605.55,605.41,3.923]
[1743244871607,1.02225859,605.55,605.41,3.923]
[1743244872013,6.56925552,607.05,605.41,3.923]
[1743244872014,1.02225859,605.54,605.41,3.923]
[1743244872513,2.13746133,605.89,605.41,3.923]
[1743244872813,6.19004412,605.88,605.41,3.923]
[1743244873015,6.19004412,605.87,605.41,3.923]
[1743244873210,6.19004412,605.86,605.41,3.923]
[1743244873412,6.19029442,605.85,605.41,3.923]
[1743244873712,6.19029442,605.84,605.41,3.923]
[1743244873915,6.19029442,605.83,605.41,3.923]
[1743244874113,6.19029442,605.82,605.41,3.923]
[1743244874308,6.19029442,605.81,605.41,3.923]
[1743244874509,6.19029442,605.8,605.41,3.923]
[1743244874716,6.19029442,605.79,605.41,3.923]
[1743244874916,6.19029442,605.78,605.41,6.097]
[1743244875111,5.69504624,605.77,605.41,6.097]
[1743244875309,5.69504624,605.76,605.41,6.097]
[1743244875513,5.69504624,605.75,605.41,6.097]
[1743244875815,5.69504624,605.74,605.41,6.097]
[1743244876015,5.69504624,605.73,605.41,6.097]
[1743244876320,5.69504624,605.72,605.41,6.097]
[1743244876615,4.30306219,605.71,605.41,6.097]
[1743244876816,0.86999003,605.7,605.41,6.097]
[1743244877012,4.30393125,605.69,605.41,6.097]
[1743244877211,4.30393125,605.68,605.41,6.097]
[1743244877415,4.30393125,605.67,605.41,6.097]
[1743244877718,4.30393125,605.66,605.41,6.097]
[1743244878019,2.19073665,605.65,605.41,6.097]
[1743244878319,2.19073665,605.64,605.41,6.097]
[1743244878522,2.19073665,605.63,605.41,6.097]
[1743244878714,1.32074662,605.62,605.41,6.097]
[1743244878914,1.32074662,605.61,605.41,6.097]
[1743244879115,1.32074662,605.6,605.41,6.097]
[1743244879318,2.65854033,605.62,605.41,6.097]
[1743244879521,1.02251551,605.59,605.41,6.097]
[1743244879720,1.32092081,605.58,605.41,6.097]
[1743244880026,1.32092081,605.57,605.41,6.097]
[1743244880224,1.32092081,605.56,605.41,6.097]
[1743244880424,1.32092081,605.55,605.41,6.097]
[1743244880625,1.02251551,605.55,605.41,6.097]
[1743244881126,1.02251551,605.54,605.41,6.097]
[1743244881525,1.02251551,605.53,605.41,4.108]
[1743244881921,1.02251551,605.52,605.41,4.108]
[1743244882631,3.28317713,607.12,605.41,4.108]
[1743244882632,0.49525536,605.8,605.41,4.108]
[1743244882927,6.19333481,605.79,605.41,4.108]
[1743244883126,0.98454198,605.94,605.41,4.108]
[1743244883127,6.19333481,605.78,605.41,4.108]
[1743244883323,6.19333481,605.77,605.41,4.108]
[1743244883522,6.19333481,605.76,605.41,4.108]
[1743244883722,6.19333481,605.75,605.41,4.108]
[1743244883930,2.66019265,605.78,605.41,4.108]
[1743244883931,6.19333481,605.74,605.41,4.108]
[1743244884228,6.19333481,605.73,605.41,6.509]
[1743244884432,6.19333481,605.72,605.41,6.509]
[1743244884627,6.19333481,605.71,605.41,6.509]
[1743244884827,5.69807945,605.7,605.41,6.509]
[1743244885032,5.69807945,605.69,605.41,6.509]
[1743244885333,5.69807945,605.68,605.41,6.509]
[1743244885534,5.69807945,605.67,605.41,6.509]
[1743244885735,5.69807945,605.66,605.41,6.509]
[1743244886034,5.69807945,605.65,605.41,6.509]
[1743244886237,5.69807945,605.64,605.41,6.509]
[1743244886436,5.69807945,605.63,605.41,6.509]
[1743244886630,4.30529303,605.62,605.41,6.509]
[1743244886833,4.30529303,605.61,605.41,6.509]
[1743244887135,2.66019265,605.64,605.41,6.509]
[1743244887136,4.30633724,605.6,605.41,6.509]
[1743244887335,4.30633724,605.59,605.41,6.509]
[1743244887536,4.30633724,605.58,605.41,6.509]
[1743244887730,4.30633724,605.57,605.41,6.509]
[1743244887935,4.30633724,605.56,605.41,6.509]
[1743244888135,2.19197064,605.55,605.41,6.509]
[1743244888435,2.192378,605.54,605.41,6.509]
[1743244888637,3.43617324,605.53,605.42,0.27076836]
[1743244888938,5.69838203,605.52,605.41,6.509]
[1743244889136,5.69842538,605.51,605.41,6.509]
[1743244889338,4.30566982,605.5,605.41,6.509]
[1743244889539,4.30566982,605.49,605.41,6.509]
[1743244889730,4.30566982,605.48,605.41,6.509]
[1743244889933,6.19350907,605.47,605.41,6.509]
[1743244890131,8.85370172,605.46,605.41,5.27027522]
[1743244890336,6.19350907,605.45,605.41,4.575]
[1743244890538,6.19350907,605.44,605.41,4.575]
[1743244890739,6.19350907,605.43,605.41,4.575]
[1743244890939,6.19350907,605.42,605.41,4.575]
[1743244891740,8.85370172,605.42,605.41,3.33611854]
[1743244891941,8.85370172,605.42,605.41,2.401]
[1743244892141,10.49749711,605.42,605.41,1.65757944]
[1743244892339,8.85370172,605.42,605.38,1.472]
[1743244892640,6.19350907,605.41,605.38,1.472]
[1743244892944,6.10217792,605.4,605.38,1.472]
[1743244893242,6.10217792,605.39,605.38,1.472]
[1743244893741,6.10217792,605.39,604.95,0.28746195]
[1743244893940,6.10217792,605.38,604.96,0.27096941]
[1743244894133,6.10217792,605.37,604.95,0.27096941]
[1743244894340,6.10217792,605.36,604.96,0.27096941]
[1743244894542,6.10217792,605.35,604.95,0.27096941]
[1743244894841,5.60656564,605.34,604.96,0.27096941]
[1743244895137,5.60656564,605.33,604.91,0.28753202]
[1743244895338,5.60656564,605.32,604.92,0.27097231]
[1743244895538,8.26675829,605.31,604.92,0.27097231]
[1743244895737,4.23776868,605.3,604.92,0.27097231]
[1743244895939,4.23776868,605.29,604.92,0.27097231]
[1743244896135,4.23776868,605.28,604.92,0.27097231]
[1743244896339,4.23776868,605.27,604.92,0.27097231]
[1743244896542,2.1563714,605.26,604.91,0.28753202]
[1743244896743,2.1563714,605.25,604.91,0.28753202]
[1743244897042,1.3008733,605.24,604.92,0.27096487]
[1743244897241,1.3008733,605.23,604.92,0.27096487]
[1743244897542,1.3008733,605.22,604.92,0.27096487]
[1743244897740,1.3008733,605.21,604.91,1.79155578]
[1743244897939,1.3008733,605.2,604.92,0.27096587]
[1743244898135,1.02315102,605.21,604.92,0.27096587]
[1743244898740,1.02315102,605.2,604.92,0.27096587]
[1743244899441,0.49561425,605.49,604.92,0.27096587]
[1743244899637,6.08676059,605.48,604.92,0.27096587]
[1743244899840,6.08676059,605.47,604.92,0.27096587]
[1743244900038,6.08676059,605.46,604.92,0.27096587]
[1743244900236,6.08676059,605.45,604.92,0.27096587]
[1743244900441,5.59114634,605.44,604.92,0.27096587]
[1743244900742,5.59114634,605.43,604.92,0.27096587]
[1743244900937,3.3729683,605.42,604.92,0.27096587]
[1743244901143,5.59062298,605.41,604.92,0.27096587]
[1743244901343,5.59062298,605.4,604.92,0.27096587]
[1743244901543,8.19403829,605.39,604.92,0.27096587]
[1743244901844,5.59062298,605.38,604.92,0.27096587]
[1743244902142,5.59062298,605.37,604.91,1.79152608]
[1743244902338,5.59062298,605.36,604.91,1.79152608]
[1743244902642,5.59062298,605.35,604.91,1.79152608]
[1743244902842,5.59062298,605.34,604.91,1.504]
[1743244903143,6.82932772,605.33,604.91,1.504]
[1743244903340,4.22591241,605.32,604.91,1.504]
[1743244903535,4.22591241,605.31,604.91,1.504]
[1743244903737,4.22591241,605.3,604.91,1.504]
[1743244903940,4.22591241,605.29,604.91,1.504]
[1743244904239,4.22591241,605.28,604.91,1.504]
[1743244904445,4.22591241,605.27,604.91,1.504]
[1743244904639,2.15023961,605.26,604.91,1.504]
[1743244904838,2.15023961,605.25,604.91,1.504]
[1743244905144,4.22296415,605.24,604.91,1.504]
[1743244905444,4.22296415,605.23,604.91,1.504]
[1743244905744,2.15023961,605.22,604.91,1.504]
[1743244905942,2.15023961,605.21,604.91,1.504]
[1743244906137,2.15023961,605.2,604.91,1.504]
[1743244906340,2.15023961,605.19,604.91,1.504]
[1743244906544,1.2972955,605.18,604.91,1.504]
[1743244906844,1.2972955,605.17,604.91,1.504]
[1743244907145,1.2972955,605.16,604.91,1.504]
[1743244907338,1.2972955,605.15,604.91,1.504]
[1743244907539,1.2972955,605.14,604.91,1.504]
[1743244907843,1.00131358,605.15,604.91,1.504]
[1743244908238,1.477348,605.55,604.91,1.504]
[1743244908441,7.051737,605.54,604.91,1.504]
[1743244908638,6.07007536,605.53,604.91,1.504]
[1743244908841,6.07007536,605.52,604.91,1.504]
[1743244909041,6.07001069,605.51,604.91,1.504]
[1743244909344,6.07001069,605.5,604.91,1.504]
[1743244909645,6.07001069,605.49,604.91,1.504]
[1743244909843,2.59560434,605.52,604.91,1.504]
[1743244909844,6.07001069,605.48,604.91,1.504]
[1743244910144,6.07001069,605.47,604.91,1.504]
[1743244910443,6.07001069,605.46,604.91,1.504]
[1743244910640,6.07001069,605.45,604.91,1.504]
[1743244910839,6.07001069,605.44,604.92,0.27096605]
[1743244911039,6.06820596,605.43,604.92,0.27096605]
[1743244911240,6.06820596,605.42,604.92,0.27096605]
[1743244911440,6.06820596,605.41,604.92,1.721]
[1743244911639,5.57257199,605.4,604.92,1.721]
[1743244911843,0.97863968,605.59,604.93,0.27095496]
[1743244911844,5.57257199,605.39,604.93,0.27095496]